bitfinex-derivatives/quotes_ETHF0:USTF0_20250309
["timestamp","ask_amount","ask_price","bid_price","bid_amount"]
[1741532690639,3.2287,2117.5,2117.4,0.6034]
[1741532693042,0.94468,2117.5,2117.4,0.6034]
[1741532693434,0.0070693,2117.8,2117.4,0.6034]
[1741532693734,0.0070693,2117.8,2117.6,3.2078]
[1741532693933,0.0070693,2117.8,2117.7,0.6402]
[1741532694246,0.9516093,2117.8,2117.7,0.6402]
[1741532698237,0.0070693,2117.8,2117.7,0.6402]
[1741532698644,0.0070693,2117.8,2117.7,1.58479]
[1741532698939,9.91088489,2118.8,2117.7,4.6402]
[1741532699145,2.9178,2118.7,2118.1,3.2078]
[1741532699347,0.9443,2118.4,2118.2,0.6223]
[1741532699540,0.9443,2118.4,2118.2,1.2743]
[1741532700441,0.0070693,2118.5,2118.2,1.2743]
[1741532700649,0.94432,2118.3,2118.2,1.2743]
[1741532700945,0.0070693,2118.5,2118.2,1.2743]
[1741532701151,0.9443,2118.4,2118.2,1.2743]
[1741532701451,0.94428,2118.4,2118.2,1.2743]
[1741532701746,0.9513293,2118.5,2118.2,1.2743]
[1741532702045,0.0070693,2118.5,2118.2,1.2743]
[1741532702251,0.94432,2118.4,2118.2,1.2743]
[1741532702458,0.94432,2118.3,2118.2,1.2743]
[1741532703045,0.94432,2118.3,2118.2,0.6223]
[1741532703246,0.0070693,2118.5,2118.2,0.6223]
[1741532703953,0.9513293,2118.5,2118.2,0.6223]
[1741532704151,0.0070693,2118.5,2118.2,0.6223]
[1741532704357,0.9513193,2118.5,2118.4,3.2078]
[1741532704556,0.0070693,2118.5,2118.4,4.15207]
[1741532704747,0.657,2119.0,2118.4,7.2078]
[1741532705051,0.94421,2118.6,2118.5,3.2078]
[1741532705250,3.8266,2118.9,2118.2,0.6223]
[1741532705447,0.94432,2118.3,2118.2,0.6223]
[1741532705843,0.94441,2118.1,2118.0,0.6401693]
[1741532706041,0.94441,2118.1,2118.0,0.0070693]
[1741532707850,4.0,2118.1,2117.4,3.2078]
[1741532708053,0.94479,2117.3,2117.1,3.2078]
[1741532708252,0.94475,2117.4,2117.1,3.2078]
[1741532708548,3.5661,2117.7,2117.1,3.2078]
[1741532708749,0.94466,2117.6,2117.1,3.2078]
[1741532708948,0.0070693,2117.6,2117.2,0.0070693]
[1741532709954,0.9517093,2117.6,2117.2,0.0070693]
[1741532710348,0.0070693,2117.6,2117.2,0.0070693]
[1741532710550,0.0070693,2117.6,2117.4,3.2078]
[1741532710551,0.9516993,2117.6,2117.4,3.2078]
[1741532710858,0.9516993,2117.6,2117.5,0.6034]
[1741532711151,0.94468,2117.5,2117.4,3.2078]
[1741532711559,0.9517293,2117.6,2117.4,3.2078]
[1741532711752,0.0070693,2117.6,2117.4,3.2078]
[1741532711959,0.0070693,2117.6,2117.4,4.1525]
[1741532712164,2.282,2118.0,2117.5,0.607]
[1741532712455,0.94454,2117.8,2117.7,3.2078]
[1741532715260,0.94463,2117.6,2117.5,0.607]
[1741532715460,0.9446,2117.7,2117.5,0.607]
[1741532715652,0.94463,2117.6,2117.5,0.607]
[1741532715955,0.94468,2117.5,2117.4,3.2078]
[1741532716560,3.5706693,2118.0,2117.4,3.2078]
[1741532716761,0.94468,2117.5,2117.4,3.2078]
[1741532716963,5.9318793,2118.0,2117.4,3.2078]
[1741532717162,0.94466,2117.6,2117.4,3.2078]
[1741532717362,1.2886693,2118.0,2117.4,3.2078]
[1741532717557,0.94468,2117.5,2117.4,3.2078]
[1741532717764,2.282,2117.9,2117.4,3.2078]
[1741532718267,0.94468,2117.5,2117.4,3.2078]
[1741532718463,2.282,2117.9,2117.4,3.2078]
[1741532718956,0.94468,2117.5,2117.4,3.2078]
[1741532719562,0.94468,2117.5,2117.2,0.6104693]
[1741532719563,0.6075,2117.8,2117.2,0.6104693]
[1741532720163,0.9447,2117.5,2117.4,3.2078]
[1741532720760,0.9447,2117.5,2117.2,0.6104693]
[1741532720957,0.94465,2117.6,2117.4,3.2078]
[1741532721158,0.94468,2117.5,2117.4,3.2078]
[1741532721664,0.94476,2117.4,2117.2,0.6104693]
[1741532721964,0.94469,2117.5,2117.2,0.6104693]
[1741532722462,0.94472,2117.5,2117.2,0.6104693]
[1741532722669,0.6075,2117.8,2117.2,0.6104693]
[1741532722869,0.94474,2117.4,2117.2,0.6104693]
[1741532723165,2.96892,2117.8,2117.2,0.6104693]
[1741532723375,0.94476,2117.3,2117.2,0.6104693]
[1741532723561,0.94476,2117.3,2117.2,0.0070693]
[1741532725474,0.94494,2116.9,2116.8,3.2078]
[1741532725769,0.94506,2116.7,2116.4,3.2078]
[1741532725966,0.94506,2116.7,2116.5,40.8]
[1741532726469,0.94506,2116.7,2116.4,3.2078]
[1741532726670,0.0070865,2116.8,2116.4,3.2148865]
[1741532727370,0.0070865,2116.8,2116.7,3.2078]
[1741532728069,0.0070865,2116.8,2116.7,8.15283]
[1741532728263,0.5935,2117.2,2116.7,3.2078]
[1741532728573,0.94495,2116.9,2116.7,3.8569]
[1741532728760,0.5935,2117.2,2116.8,40.8]
[1741532728968,0.94492,2117.0,2116.8,40.8]
[1741532729268,0.94492,2117.0,2116.8,41.435]
[1741532729460,0.0070865,2117.1,2116.8,41.435]
[1741532729671,0.0070865,2117.1,2117.0,3.2078]
[1741532730072,0.0070865,2117.1,2117.0,8.1527]
[1741532730273,0.6465,2117.6,2117.1,0.94485]
[1741532730471,0.6465,2117.6,2117.3,3.2078]
[1741532730776,0.94472,2117.4,2117.3,3.2078]
[1741532730968,0.94472,2117.4,2117.3,3.8334]
[1741532731176,0.94472,2117.4,2117.3,3.2078]
[1741532731476,0.94485,2117.1,2117.0,3.2078]
[1741532732074,2.9123,2117.3,2116.7,4.4292]
[1741532732574,0.94497,2116.9,2116.7,4.4292]
[1741532733072,0.94498,2116.9,2116.7,4.4292]
[1741532733273,0.94499,2116.8,2116.7,4.4292]
[1741532733570,0.94499,2116.8,2116.7,3.2078]
[1741532734171,2.281,2116.9,2116.4,0.6475865]
[1741532734470,0.94506,2116.7,2116.4,0.6475865]
[1741532734672,1.25,2116.8,2116.4,0.6475865]
[1741532734877,0.94512,2116.5,2116.4,0.6475865]
[1741532735174,0.94512,2116.5,2116.4,0.0070865]
[1741532736574,0.94505,2116.7,2116.4,0.0070865]
[1741532736773,1.25,2116.8,2116.4,0.0070865]
[1741532736774,0.94508,2116.6,2116.4,0.0070865]
[1741532736971,1.25,2116.8,2116.4,0.0070865]
[1741532737173,0.94512,2116.5,2116.4,0.0070865]
[1741532741172,0.94509,2116.6,2116.4,0.0070865]
[1741532741371,3.2078,2116.7,2116.4,0.0070865]
[1741532741572,0.94512,2116.5,2116.4,0.0070865]
[1741532741973,0.94508,2116.6,2116.4,0.0070865]
[1741532742173,3.2078,2116.7,2116.4,0.0070865]
[1741532742378,0.94512,2116.5,2116.4,0.0070865]
[1741532742979,0.94511,2116.6,2116.4,0.0070865]
[1741532743183,4.1357,2116.8,2116.4,0.0070865]
[1741532743184,1.58522,2116.8,2116.4,1.5776265]
[1741532743383,0.6402,2116.8,2116.5,0.6359]
[1741532743685,0.94508,2116.6,2116.5,0.6359]
[1741532745483,0.94512,2116.5,2116.4,0.0070865]
[1741532748280,1.2622,2116.8,2116.4,0.0070865]
[1741532748581,0.94503,2116.7,2116.4,0.0070865]
[1741532748886,1.2622,2116.8,2116.4,0.0070865]
[1741532748887,0.9451,2116.6,2116.4,0.0070865]
[1741532749477,1.2622,2116.8,2116.4,0.0070865]
[1741532749677,0.94512,2116.5,2116.4,0.0070865]
[1741532754282,2.281,2116.5,2116.4,0.0070865]
[1741532754584,3.22612,2116.5,2116.4,0.0070865]
[1741532758185,0.94517,2116.4,2116.3,3.2078]
[1741532758384,1.59797,2116.4,2116.3,3.2078]
[1741532762984,0.94517,2116.4,2116.3,3.2078]
[1741532763878,0.94517,2116.4,2116.3,3.8416]
[1741532764085,0.94516,2116.5,2116.3,3.8416]
[1741532764285,0.94516,2116.5,2116.4,0.5944]
[1741532764680,0.9451,2116.6,2116.4,0.5944]
[1741532764980,2.9202,2116.8,2116.4,0.5944]
[1741532765181,0.94512,2116.5,2116.4,0.5944]
[1741532774196,0.94526,2116.2,2116.1,0.0070865]
[1741532781498,0.94526,2116.2,2116.1,6.5e-06]
[1741532793502,0.0070865,2116.4,2116.1,0.9452965]
[1741532793709,0.94521,2116.3,2116.2,3.2078]
[1741532794010,0.9522765,2116.4,2116.2,4.15305]
[1741532794313,0.94521,2116.3,2116.2,3.2078]
[1741532794508,0.94521,2116.3,2116.2,44.0078]
[1741532795404,3.2078,2117.0,2116.2,44.0078]
[1741532795609,2.36192,2117.3,2116.6,3.2078]
[1741532795807,0.94499,2116.8,2116.7,1.2236]
[1741532796912,0.94499,2116.8,2116.7,0.6286]
[1741532798208,0.0070865,2117.0,2116.7,0.6286]
[1741532798416,0.9520165,2117.0,2116.7,0.6286]
[1741532798614,0.9520165,2117.0,2116.9,3.2078]
[1741532799004,0.9520165,2117.0,2116.9,3.8528]
[1741532799205,0.0070865,2117.0,2116.9,3.8528]
[1741532799408,0.9519865,2117.0,2116.9,3.8528]
[1741532800019,0.9519865,2117.0,2116.9,3.2078]
[1741532801816,0.94499,2116.8,2116.7,0.6286]
[1741532802619,1.56087,2116.9,2116.7,0.6286]
[1741532802818,0.6159,2116.9,2116.7,0.6286]
[1741532803022,0.94499,2116.8,2116.7,0.6286]
[1741532803214,0.6159,2116.9,2116.7,0.6286]
[1741532803518,0.94499,2116.8,2116.7,0.6286]
[1741532804312,0.0070865,2117.0,2116.7,4.6286]
[1741532804517,0.0070865,2117.0,2116.9,3.2078]
[1741532804718,0.0070865,2117.0,2116.9,3.8442]
[1741532805312,0.6091,2117.4,2116.9,3.8442]
[1741532805509,0.94476,2117.3,2117.2,3.2078]
[1741532807718,0.9449,2117.0,2116.9,3.8442]
[1741532808508,0.9449,2117.0,2116.9,4.476]
[1741532808913,0.94487,2117.1,2116.9,4.476]
[1741532809323,0.94486,2117.1,2116.9,4.476]
[1741532809620,0.94487,2117.1,2116.9,4.476]
[1741532809822,2.2830284,2117.5,2116.9,4.476]
[1741532810027,0.94488,2117.1,2116.9,4.476]
[1741532810334,0.9449,2117.0,2116.9,4.476]
[1741532811517,0.9449,2117.0,2116.9,3.8396]
[1741532812624,0.94488,2117.1,2116.9,3.8396]
[1741532812818,2.2830284,2117.5,2117.0,0.6002]
[1741532812819,0.0070284,2117.5,2117.0,0.6002]
[1741532813013,0.94485,2117.1,2117.0,0.6002]
[1741532813810,0.9449,2117.0,2116.9,3.8396]
[1741532815317,0.94488,2117.1,2116.9,3.8396]
[1741532815524,0.94487,2117.1,2116.9,3.8396]
[1741532816016,0.94487,2117.1,2116.9,5.40384]
[1741532816408,0.94487,2117.1,2116.9,4.4589]
[1741532816615,0.9449,2117.0,2116.9,4.4589]
[1741532816814,0.0070284,2117.5,2117.1,0.94482]
[1741532817013,0.0070284,2117.5,2117.3,0.94476]
[1741532817219,0.9517084,2117.5,2117.4,0.6463]
[1741532818323,0.0070284,2117.5,2117.4,0.6463]
[1741532819025,0.94456,2117.8,2117.5,0.94466]
[1741532819228,0.94456,2117.8,2117.7,3.2078]
[1741532821327,2.36114,2118.0,2117.4,0.6463]
[1741532821719,4.63609,2118.1,2117.4,0.6463]
[1741532822122,0.94464,2117.6,2117.4,0.6463]
[1741532823327,0.94467,2117.6,2117.4,0.6463]
[1741532823626,0.94455,2117.8,2117.5,0.94465]
[1741532823824,1.5447,2118.2,2117.6,3.2078]
[1741532824016,0.6003,2118.2,2118.0,0.94443]
[1741532824220,1.54466,2118.2,2118.1,0.6395]
[1741532824616,0.6003,2118.2,2118.1,0.6395]
[1741532824818,0.9443,2118.4,2118.2,0.94436]
[1741532825025,0.94432,2118.3,2118.2,3.2078]
[1741532825620,0.94436,2118.2,2118.1,0.6395]
[1741532826430,0.94435,2118.3,2118.1,0.6395]
[1741532826620,0.94429,2118.4,2118.2,3.2078]
[1741532827529,0.6469,2118.8,2118.2,3.2078]
[1741532827729,0.6469,2118.8,2118.3,0.5939]
[1741532827730,0.94423,2118.5,2118.3,0.5939]
[1741532827927,0.94423,2118.5,2118.3,0.6009865]
[1741532828125,0.94423,2118.5,2118.3,41.4009865]
[1741532828524,0.94427,2118.4,2118.3,0.6009865]
[1741532828728,0.94427,2118.4,2118.3,0.0070865]
[1741532832129,2.273,2118.5,2118.3,0.0070865]
[1741532832330,0.6469,2118.8,2118.3,0.0070865]
[1741532832532,0.6469,2118.8,2118.5,3.2078]
[1741532832729,3.2078,2119.0,2118.5,3.2078]
[1741532833032,1.54168,2119.1,2118.8,3.2078]
[1741532833331,0.5977,2119.1,2118.9,0.6229]
[1741532833527,1.54168,2119.1,2118.9,0.6229]
[1741532833826,1.54168,2119.1,2118.8,3.2078]
[1741532833827,0.5977,2119.1,2118.8,3.2078]
[1741532834022,0.94405,2118.9,2118.8,3.2078]
[1741532834232,0.5977,2119.1,2118.8,3.2078]
[1741532834529,0.94404,2119.0,2118.8,3.2078]
[1741532834731,0.94405,2118.9,2118.8,3.2078]
[1741532835834,0.94405,2118.9,2118.6,0.6021]
[1741532835835,0.94418,2118.6,2118.5,5.4798]
[1741532836031,0.5966,2119.0,2118.5,3.2078]
[1741532836227,0.94412,2118.8,2118.5,3.2078]
[1741532836534,0.94414,2118.7,2118.5,3.2078]
[1741532836743,0.5966,2119.0,2118.5,3.2078]
[1741532837036,0.94416,2118.7,2118.5,3.2078]
[1741532837935,0.94416,2118.7,2118.6,0.6117]
[1741532838231,0.5966,2119.0,2118.6,0.6117]
[1741532838428,0.94414,2118.7,2118.6,0.6117]
[1741532839236,0.94418,2118.6,2118.5,3.2078]
[1741532839442,1.60108,2118.6,2118.5,3.2078]
[1741532841137,0.5966,2119.0,2118.5,3.2078]
[1741532841331,0.6318,2119.1,2118.8,3.2078]
[1741532841533,0.94401,2119.0,2118.9,0.654]
[1741532841834,0.6318,2119.1,2118.8,3.2078]
[1741532841835,0.94405,2118.9,2118.8,3.2078]
[1741532842738,0.6299,2119.0,2118.8,3.2078]
[1741532842739,1.57394,2119.0,2118.8,3.2078]
[1741532842939,0.94404,2119.0,2118.8,3.2078]
[1741532843140,0.6318,2119.1,2118.8,3.2078]
[1741532843334,0.6318,2119.1,2118.6,0.654]
[1741532843335,3.8396,2119.1,2118.6,0.654]
[1741532843535,0.94414,2118.7,2118.6,0.654]
[1741532843738,3.8396,2119.1,2118.5,3.2078]
[1741532843935,0.94418,2118.6,2118.5,3.8172]
[1741532844135,0.94418,2118.6,2118.5,3.2078]
[1741532845536,0.6167,2118.8,2118.5,3.2078]
[1741532845738,2.271,2119.0,2118.5,3.2078]
[1741532845941,0.94407,2118.9,2118.6,0.6385]
[1741532846142,0.94404,2119.0,2118.6,0.6385]
[1741532846744,0.6318,2119.1,2118.6,0.6385]
[1741532846936,0.6318,2119.1,2118.8,4.15187]
[1741532847241,0.94395,2119.2,2118.8,4.15188]
[1741532847441,0.6471,2119.3,2119.1,3.2078]
[1741532848241,0.94392,2119.2,2119.1,3.2078]
[1741532848943,0.6471,2119.3,2119.1,3.2078]
[1741532849139,0.94392,2119.2,2119.1,3.2078]
[1741532852936,1.59098,2119.3,2119.1,3.2078]
[1741532853143,0.94385,2119.4,2119.1,4.15176]
[1741532853347,0.94381,2119.5,2119.2,1.57429]
[1741532853543,0.94381,2119.5,2119.4,3.2078]
[1741532855249,1.58966,2119.6,2119.4,3.2078]
[1741532855549,0.6459,2119.6,2119.4,3.2078]
[1741532855740,0.94378,2119.6,2119.5,0.6323]
[1741532856135,1.2379,2119.9,2119.5,0.6323]
[1741532856439,0.6277,2119.9,2119.5,0.6323]
[1741532856638,0.94368,2119.8,2119.5,0.6393865]
[1741532856834,0.6103,2120.1,2119.7,3.2078]
[1741532857045,0.6277,2120.1,2119.7,3.2078]
[1741532857249,0.94365,2119.8,2119.7,3.2078]
[1741532857445,3.2078,2120.5,2119.7,7.2078]
[1741532857747,3.2078,2120.5,2119.9,3.2078]
[1741532857748,0.94356,2120.0,2119.9,3.2078]
[1741532858151,0.94356,2120.0,2119.9,44.0078]
[1741532858449,0.94356,2120.0,2119.9,3.2078]
[1741532859645,0.6103,2120.3,2119.9,3.2078]
[1741532860055,0.94349,2120.2,2119.9,3.2078]
[1741532860247,0.94351,2120.2,2119.9,3.2078]
[1741532860549,0.6103,2120.3,2119.9,3.2078]
[1741532860746,0.94356,2120.0,2119.9,3.2078]
[1741532861954,0.94365,2119.8,2119.7,0.6299]
[1741532862855,1.2624,2120.0,2119.6,3.2078]
[1741532863147,0.94369,2119.7,2119.6,3.2078]
[1741532863352,0.94374,2119.6,2119.5,0.0070865]
[1741532863548,1.58404,2119.6,2119.5,0.0070865]
[1741532865758,2.19874,2119.6,2119.5,0.0070865]
[1741532866854,0.94387,2119.3,2119.2,3.2078]
[1741532870750,0.6431,2119.5,2119.0,0.0070865]
[1741532870751,0.94396,2119.1,2119.0,0.0070865]
[1741532871458,2.18336,2119.1,2119.0,0.0070865]
[1741532873062,5.39116,2119.1,2119.0,0.0070865]
[1741532874267,2.18336,2119.1,2119.0,0.0070865]
[1741532874949,5.39116,2119.1,2119.0,0.0070865]
[1741532875150,5.39116,2119.1,2119.0,6.5e-06]
[1741532875557,9.39116,2119.1,2119.0,6.5e-06]
[1741532877958,5.39116,2119.1,2119.0,6.5e-06]
[1741532879164,7.65916,2119.1,2119.0,6.5e-06]
[1741532881056,11.65916,2119.1,2119.0,6.5e-06]
[1741532882363,7.65916,2119.1,2119.0,6.5e-06]
[1741532882564,0.6565,2119.2,2119.0,6.5e-06]
[1741532882865,0.94396,2119.1,2119.0,6.5e-06]
[1741532883167,2.8788,2119.5,2119.0,3.2078065]
[1741532883361,0.9439,2119.3,2119.0,3.2078065]
[1741532883867,0.94393,2119.2,2119.0,3.2078065]
[1741532884358,0.94389,2119.3,2119.0,3.2078065]
[1741532885267,0.94386,2119.4,2119.0,3.2078065]
[1741532885469,2.268,2119.5,2119.0,3.2078065]
[1741532885764,0.94396,2119.1,2119.0,3.2078065]
[1741532885969,0.94396,2119.1,2119.0,6.5e-06]
[1741532892575,0.6537,2119.3,2119.0,6.5e-06]
[1741532892776,6.0689,2119.6,2119.0,6.5e-06]
[1741532893176,0.94393,2119.2,2119.0,6.5e-06]
[1741532893367,0.94396,2119.1,2119.0,6.5e-06]
[1741532893674,6.0689,2119.6,2119.0,6.5e-06]
[1741532893879,0.94396,2119.1,2119.0,0.6481065]
[1741532894074,0.94395,2119.2,2119.0,0.6481065]
[1741532894380,0.94396,2119.1,2119.0,0.6481065]
[1741532895776,0.94396,2119.1,2119.0,6.5e-06]
[1741532896273,2.19416,2119.1,2119.0,6.5e-06]
[1741532896977,6.19416,2119.1,2119.0,6.5e-06]
[1741532900586,2.19416,2119.1,2119.0,6.5e-06]
[1741532900885,0.94396,2119.1,2119.0,6.5e-06]
[1741532902382,2.981,2119.7,2119.0,4.1518065]
[1741532902590,0.94382,2119.5,2119.3,3.2078]
[1741532902888,0.94382,2119.5,2119.4,0.6002]
[1741532904285,4.5049,2119.9,2119.4,0.6002]
[1741532904477,2.266,2119.9,2119.4,1.2447]
[1741532904680,6.7,2120.2,2119.4,1.2447]
[1741532904882,0.94352,2120.1,2119.6,4.15152]
[1741532905081,0.94357,2120.0,2119.7,0.6134]
[1741532905282,2.266,2120.3,2119.8,0.6377]
[1741532905588,0.94359,2120.0,2119.8,0.6377]
[1741532905984,2.266,2120.3,2119.8,0.6377]
[1741532906286,0.94361,2119.9,2119.8,0.6377]
[1741532908794,0.94369,2119.7,2119.6,3.2078]
[1741532908991,0.94374,2119.6,2119.5,0.6015]
[1741532910494,0.6311,2119.8,2119.5,0.6015]
[1741532910684,0.94369,2119.7,2119.5,0.6015]
[1741532910990,0.94374,2119.6,2119.5,0.6015]
[1741532911186,0.6311,2119.8,2119.5,0.6015]
[1741532911392,3.2078,2119.9,2119.6,3.2078]
[1741532911595,0.94363,2119.9,2119.6,3.2078]
[1741532911891,0.5957,2120.0,2119.6,3.2078]
[1741532912289,0.94366,2119.8,2119.6,3.2078]
[1741532912483,0.94369,2119.7,2119.6,3.2078]
[1741532915491,0.94359,2120.0,2119.6,3.2078]
[1741532915694,0.94356,2120.0,2119.6,4.15151]
[1741532915994,0.94358,2120.0,2119.6,4.1515]
[1741532916593,0.94361,2119.9,2119.6,4.1515]
[1741532917494,0.00708,2120.1,2119.6,3.2078]
[1741532917695,0.00708,2120.1,2120.0,3.2078]
[1741532917696,0.9506,2120.1,2120.0,3.2078]
[1741532918093,0.00708,2120.1,2120.0,3.2078]
[1741532918395,0.9506,2120.1,2120.0,3.8056]
[1741532918792,0.9506,2120.1,2120.0,4.4102]
[1741532920198,0.00708,2120.1,2120.0,4.4102]
[1741532920397,0.00708,2120.1,2120.0,5.35376]
[1741532921298,0.00708,2120.1,2120.0,8.4102]
[1741532921895,2.35831,2120.6,2120.0,9.35372]
[1741532922095,0.94345,2120.3,2120.1,0.94351]
[1741532922497,1.291,2120.7,2120.0,4.4102]
[1741532922798,1.291,2120.7,2120.3,3.2078]
[1741532922799,0.94338,2120.4,2120.3,3.2078]
[1741532923599,1.291,2120.7,2120.3,3.2078]
[1741532923799,0.94334,2120.5,2120.4,0.6189]
[1741532924093,0.36063442,2121.9,2120.4,0.6189]
[1741532924299,0.94334,2120.5,2120.4,0.6189]
[1741532924896,7.82888,2120.8,2120.3,3.2078]
[1741532925093,0.94338,2120.4,2120.3,3.2078]
[1741532925393,0.94347,2120.2,2120.1,0.0070865]
[1741532927398,0.94345,2120.3,2120.1,0.0070865]
[1741532927697,3.8434,2120.4,2120.1,0.0070865]
[1741532927897,2.263,2120.4,2120.1,0.0070865]
[1741532928104,1.54991,2120.6,2120.3,3.2078]
[1741532928301,1.54991,2120.6,2120.4,0.6508]
[1741532928694,0.94334,2120.5,2120.4,0.6508]
[1741532928897,0.6066,2120.6,2120.4,0.6508]
[1741532929105,1.54992,2120.6,2120.4,0.6508]
[1741532929395,0.6449,2120.7,2120.4,0.6508]
[1741532929602,1.58816,2120.7,2120.6,3.2078]
[1741532929801,0.94325,2120.7,2120.6,3.2078]
[1741532934800,2.94995,2120.8,2120.2,3.2078]
[1741532935000,0.94343,2120.3,2120.2,3.2078]
[1741532936706,0.94347,2120.2,2120.1,0.0070865]
[1741532938897,1.58687,2120.2,2120.1,0.0070865]
[1741532940304,1.58687,2120.2,2119.4,19.251]
[1741532940305,2.3588,2120.1,2119.4,22.4588]
[1741532940511,0.94367,2119.8,2119.6,0.6084]
[1741532940703,0.6425,2120.0,2119.4,22.4588]
[1741532940905,0.94378,2119.5,2119.4,22.4588]
[1741532941108,0.94378,2119.5,2119.4,3.2078]
[1741532941509,1.2578865,2119.7,2119.3,0.6084]
[1741532941712,0.94383,2119.4,2119.3,0.6084]
[1741532942210,0.94387,2119.3,2119.2,0.0070865]
[1741532942510,0.94387,2119.3,2119.2,0.6154865]
[1741532944604,3.2078,2119.6,2119.2,0.6154865]
[1741532944909,0.94386,2119.4,2119.2,0.6154865]
[1741532945304,0.94387,2119.3,2119.2,0.6154865]
[1741532947015,1.2578865,2119.7,2119.2,0.0070865]
[1741532947310,0.94387,2119.3,2119.2,0.0070865]
[1741532947809,1.2578865,2119.7,2119.2,0.0070865]
[1741532948014,0.94387,2119.3,2119.2,0.0070865]
[1741532949209,1.2578865,2119.7,2119.2,0.0070865]
[1741532949416,0.94378,2119.5,2119.4,3.2078]
[1741532952313,0.94375,2119.6,2119.4,3.2078]
[1741532952615,0.94375,2119.6,2119.5,0.6363]
[1741532953112,0.6504865,2119.7,2119.5,0.6363]
[1741532953311,0.6504865,2119.7,2119.5,1.2899]
[1741532953514,0.0070865,2119.7,2119.5,1.2899]
[1741532953715,0.0070865,2119.7,2119.5,1.9409]
[1741532954116,0.9508265,2119.7,2119.5,1.9409]
[1741532954414,0.9508065,2119.7,2119.5,1.9409]
[1741532954616,0.0070865,2119.7,2119.5,1.9409]
[1741532954810,0.0070865,2119.7,2119.6,0.94374]
[1741532955211,0.0070865,2119.7,2119.5,1.9409]
[1741532955410,0.0070865,2119.7,2119.5,2.88467]
[1741532956110,0.9507865,2119.7,2119.5,2.88467]
[1741532957813,0.0070865,2119.7,2119.6,0.94374]
[1741532958517,2.261,2120.4,2119.6,4.0]
[1741532958725,0.94363,2119.9,2119.7,0.94368]
[1741532958927,0.94363,2119.9,2119.8,3.2078]
[1741532960824,0.94358,2120.0,2119.8,4.15145]
[1741532961018,0.94358,2120.0,2119.9,0.5975]
[1741532965929,3.5269,2120.4,2119.9,0.5975]
[1741532966224,0.94355,2120.1,2119.9,0.5975]
[1741532966422,0.94356,2120.0,2119.9,0.5975]
[1741532967426,1.2659,2120.4,2119.9,0.5975]
[1741532967630,0.94347,2120.2,2120.1,3.2078]
[1741532968130,0.94343,2120.3,2120.1,4.15129]
[1741532968324,0.94347,2120.2,2120.1,3.2078]
[1741532969525,0.94346,2120.3,2120.1,3.2078]
[1741532970028,0.94347,2120.2,2120.1,3.2078]
[1741532970230,1.2659,2120.4,2120.1,3.2078]
[1741532970431,0.94346,2120.3,2120.1,3.2078]
[1741532971120,1.2659,2120.4,2120.2,0.94345]
[1741532971326,1.2659,2120.4,2120.1,3.2078]
[1741532971628,1.56029,2120.4,2120.1,4.15128]
[1741532971825,0.6169,2120.4,2120.2,0.94346]
[1741532972227,0.6169,2120.4,2120.3,0.6049]
[1741532972727,0.94336,2120.5,2120.3,1.54832]
[1741532972930,0.638,2120.6,2120.4,3.2078]
[1741532973122,0.5956,2120.9,2120.5,0.94331]
[1741532973327,1.2336,2120.9,2120.4,3.2078]
[1741532973527,0.94334,2120.5,2120.4,3.2078]
[1741532973932,1.2336,2120.9,2120.4,3.2078]
[1741532974132,0.94332,2120.6,2120.4,3.2078]
[1741532974332,1.2336,2120.9,2120.4,4.15118]
[1741532974531,0.94331,2120.6,2120.4,3.2078]
[1741532975033,0.94327,2120.7,2120.4,4.15117]
[1741532975427,0.94334,2120.5,2120.4,3.2078]
[1741532976530,1.2336,2120.9,2120.4,3.2078]
[1741532976735,0.94327,2120.7,2120.4,4.15116]
[1741532977332,0.94327,2120.7,2120.4,3.2078]
[1741532977533,1.2336,2120.9,2120.4,3.2078]
[1741532977936,0.94328,2120.7,2120.4,3.2078]
[1741532978250,0.94328,2120.7,2120.4,4.15118]
[1741532978537,0.94328,2120.7,2120.4,3.2078]
[1741532978836,0.94328,2120.7,2120.4,4.15116]
[1741532978837,0.94325,2120.7,2120.4,4.15116]
[1741532979030,0.94325,2120.7,2120.4,3.2078]
[1741532979236,1.2336,2120.9,2120.4,3.2078]
[1741532979437,0.94328,2120.7,2120.4,3.2078]
[1741532979637,0.94328,2120.7,2120.4,4.15116]
[1741532979831,1.2336,2120.9,2120.4,3.2078]
[1741532980232,0.94328,2120.7,2120.4,3.2078]
[1741532980536,0.94331,2120.6,2120.4,3.2078]
[1741532980738,0.94328,2120.7,2120.4,3.2078]
[1741532981633,1.2336,2120.9,2120.4,3.2078]
[1741532982039,0.94328,2120.7,2120.4,3.2078]
[1741532982238,1.2336,2120.9,2120.4,3.2078]
[1741532982441,0.94328,2120.7,2120.4,3.2078]
[1741532983543,0.9433,2120.6,2120.4,3.2078]
[1741532984930,0.94331,2120.6,2120.4,4.15117]
[1741532985136,0.94331,2120.6,2120.4,3.2078]
[1741532985751,1.2336,2120.9,2120.4,3.2078]
[1741532986143,0.94332,2120.6,2120.4,4.15117]
[1741532986346,0.94334,2120.5,2120.4,3.2078]
[1741532986742,1.2336,2120.9,2120.4,3.859]
[1741532986950,0.94334,2120.6,2120.4,4.80238]
[1741532987151,1.2336,2120.9,2120.4,4.80238]
[1741532987351,0.94334,2120.5,2120.4,3.859]
[1741532989151,1.2336,2120.9,2120.4,3.859]
[1741532989853,0.94331,2120.6,2120.4,4.15117]
[1741532990953,0.94334,2120.5,2120.4,3.2078]
[1741532991154,0.94333,2120.6,2120.4,4.15118]
[1741532993452,1.2336,2120.9,2120.4,4.15118]
[1741532993754,0.94334,2120.5,2120.4,4.15118]
[1741532993955,0.94333,2120.6,2120.4,4.15118]